fUST/lending_fUST_20240927
["ID","MTS","AMOUNT","RATE_DAILY","PERIOD"]
[339270969,1727425842111,-500.0,0.00021,30]
[339270970,1727425842120,-500.0,0.00021,30]
[339270971,1727425842129,-500.0,0.00021,30]
[339270972,1727425842139,-500.0,0.00021,30]
[339270973,1727425842148,-500.0,0.00021,30]
[339270974,1727425842158,-500.0,0.00021,30]
[339270975,1727425842167,-500.0,0.00021,30]
[339270976,1727425842176,-500.0,0.00021,30]
[339270977,1727425842186,-500.0,0.00021,30]
[339270978,1727425842195,-500.0,0.00021,30]
[339270979,1727425842205,-154.74467129,0.00021,30]
[339270980,1727425842215,-3000.0,0.0002101,2]
[339270981,1727425842224,-3000.0,0.0002102,2]
[339270982,1727425842233,-235.107178,0.00021026,2]
[339270983,1727425842243,-217.065364,0.00021026,2]
[339270984,1727425842253,-3000.0,0.0002103,2]
[339270985,1727425842262,-3000.0,0.0002104,2]
[339270986,1727425842272,-3000.0,0.0002105,2]
[339270987,1727425842281,-3000.0,0.0002106,2]
[339270988,1727425842295,-3000.0,0.0002107,2]
[339270989,1727425842305,-500.0,0.00021073,2]
[339270990,1727425842314,-500.0,0.00021073,2]
[339270991,1727425842323,-500.0,0.00021073,2]
[339270992,1727425842332,-500.0,0.00021073,2]
[339270993,1727425842342,-3000.0,0.0002108,2]
[339270994,1727425842352,-3000.0,0.0002109,2]
[339270995,1727425842361,-298.48334783,0.00021095,2]
[339270996,1727425842370,-2435.48,0.00021095,2]
[339270997,1727425842380,-500.0,0.00021095,2]
[339270998,1727425842389,-500.0,0.00021095,2]
[339270999,1727425842399,-301.42161849,0.00021095,2]
[339271000,1727425842408,-1800.19833991,0.00021098,2]
[339271001,1727425842418,-3000.0,0.000211,2]
[339271002,1727425842428,-3000.0,0.0002111,2]
[339271003,1727425842438,-3000.0,0.0002112,2]
[339271004,1727425842448,-3000.0,0.0002113,2]
[339271005,1727425842459,-3000.0,0.0002114,2]
[339271006,1727425842469,-3000.0,0.0002115,2]
[339271007,1727425842483,-3000.0,0.0002116,2]
[339271008,1727425842493,-3000.0,0.0002117,2]
[339271009,1727425842502,-3000.0,0.0002118,2]
[339271010,1727425842512,-3000.0,0.0002119,2]
[339271011,1727425842523,-3000.0,0.000212,2]
[339271012,1727425842532,-506.77675041,0.000212,2]
[339271013,1727425842543,-797.11275016,0.000212,30]
[339271014,1727425842553,-3000.0,0.0002121,2]
[339271015,1727425842562,-3000.0,0.0002122,2]
[339271016,1727425842572,-3000.0,0.0002123,2]
[339271017,1727425842582,-3000.0,0.0002124,2]
[339271018,1727425842592,-3000.0,0.0002125,2]
[339271019,1727425842601,-3000.0,0.0002126,2]
[339271020,1727425842611,-3000.0,0.0002127,2]
[339271021,1727425842621,-3000.0,0.0002128,2]
[339271022,1727425842630,-188.035,0.00021289,2]
[339271023,1727425842640,-3000.0,0.0002129,2]
[339271024,1727425842649,-2435.48,0.00021369,2]
[339271025,1727425842659,-500.0,0.00021369,2]
[339271026,1727425842668,-500.0,0.00021369,2]
[339271027,1727425842678,-1000.0,0.00021621,2]
[339271028,1727425842688,-1000.0,0.00021621,2]
[339271029,1727425842698,-508.57077754,0.00021621,2]
[339271030,1727425842708,-1000.0,0.00021621,2]
[339271031,1727425842718,-2435.48,0.00021643,2]
[339271032,1727425842727,-500.0,0.00021643,2]
[339271033,1727425842737,-500.0,0.00021643,2]
[339271034,1727425842747,-251.237435,0.00021894,2]
[339271035,1727425842756,-247.760182,0.00021894,2]
[339271036,1727425842766,-259.945393,0.00021894,2]
[339271037,1727425842775,-220.0,0.000219,2]
[339271038,1727425842786,-366.46,0.000219,2]
[339271039,1727425842795,-300.349862,0.000219,9]
[339271040,1727425842805,-154.19,0.000219,31]
[339271041,1727425842815,-154.19,0.000219,31]
[339271042,1727425842825,-154.19,0.000219,31]
[339271043,1727425842834,-154.19,0.000219,31]
[339271044,1727425842844,-154.19,0.000219,31]
[339271045,1727425842854,-154.19,0.000219,31]
[339271046,1727425842863,-154.19,0.000219,31]
[339271047,1727425842873,-154.19,0.000219,31]
[339271048,1727425842883,-154.19,0.000219,31]
[339271049,1727425842892,-154.19,0.000219,31]
[339271050,1727425842903,-154.19,0.000219,31]
[339271051,1727425842912,-500.0,0.00021917,2]
[339271052,1727425842922,-2435.48,0.00021917,2]
[339271053,1727425842931,-500.0,0.00021917,2]
[339271054,1727425842941,-227.92944176,0.00021917,2]
[339271055,1727425842951,-175.16841069,0.00021918,2]
[339271056,1727425842960,-160.0,0.00022,2]
[339271057,1727425842969,-2471.17796445,0.00022092,2]
[339271058,1727425842980,-247.760182,0.00022168,2]
[339271059,1727425842989,-259.945393,0.00022168,2]
[339271060,1727425842999,-2435.48,0.00022191,2]
[339271061,1727425843009,-500.0,0.00022191,2]
[339271062,1727425843044,-1637.09844942,0.00022331,2]
[339271063,1727425843054,-1500.0,0.00022331,2]
[339271064,1727425843064,-220.0,0.0002234,2]
[339271065,1727425843074,-385.698788,0.00022351,2]
[339271067,1727425843084,-176.0,0.0002236,6]
[339271069,1727425843094,-247.760182,0.00022441,2]
[339271071,1727425843104,-259.945393,0.00022441,2]
[339271072,1727425843113,-2435.48,0.00022465,2]
[339271073,1727425843122,-500.0,0.00022465,2]
[339271074,1727425843132,-247.760182,0.00022715,2]
[339271075,1727425843141,-259.945393,0.00022715,2]
[339271076,1727425843150,-2435.48,0.00022739,2]
[339271077,1727425843160,-500.0,0.00022739,2]
[339271078,1727425843169,-220.0,0.0002279,2]
[339271079,1727425843179,-247.760182,0.00022989,2]
[339271081,1727425843188,-259.945393,0.00022989,2]
[339271083,1727425843198,-587.0,0.00022989,2]
[339271085,1727425843207,-302.42545213,0.00023,2]
[339271087,1727425843217,-307.3851242,0.00023,2]
[339271089,1727425843227,-338.0,0.00023,2]
[339271091,1727425843237,-302.42545213,0.00023,2]
[339271093,1727425843247,-200.0,0.00023,2]
[339271094,1727425843257,-453.0,0.00023,2]
[339271096,1727425843266,-939.53904009,0.00023013,2]
[339271128,1727425843633,-18.87305565,0.00020692,2]
[339271129,1727425843724,-1315.73194435,0.00020692,2]
[339271130,1727425843733,-1495.94095991,0.00023013,2]
[339271131,1727425843743,-500.0,0.00023013,2]
[339271132,1727425843753,-296.5558309,0.0002304,2]
[339271133,1727425843763,-209.1919512,0.0002304,2]
[339271134,1727425843772,-209.1919512,0.0002304,2]
[339271135,1727425843782,-208.2604155,0.0002304,2]
[339271136,1727425843793,-306.0000001,0.0002304,2]
[339271137,1727425843802,-153.0,0.0002304,2]
[339271138,1727425843813,-153.0,0.0002304,2]
[339271139,1727425843822,-154.19,0.000231,31]
[339271140,1727425843833,-154.19,0.000231,31]
[339271141,1727425843843,-154.19,0.000231,31]
[339271142,1727425843852,-154.19,0.000231,31]
[339271143,1727425843861,-154.19,0.000231,31]
[339271144,1727425843871,-154.19,0.000231,31]
[339271145,1727425843881,-154.19,0.000231,31]
[339271146,1727425843890,-154.19,0.000231,31]
[339271147,1727425843900,-154.19,0.000231,31]
[339271148,1727425843910,-154.19,0.000231,31]
[339271149,1727425843921,-154.19,0.000231,31]
[339271150,1727425843930,-154.19,0.000231,31]
[339271151,1727425843942,-154.19,0.000231,31]
[339271152,1727425843953,-154.19,0.000231,31]
[339271153,1727425843962,-2000.0,0.0002312,2]
[339271154,1727425843972,-220.0,0.0002323,2]
[339271155,1727425843981,-302.42545213,0.0002323,2]
[339271156,1727425843991,-255.3034315,0.0002323,2]
[339271157,1727425844000,-501.17404769,0.00023233,120]
[339271158,1727425844010,-2264.72459336,0.00023287,2]
[339271166,1727425846677,-153.0,0.0001948,2]
[339271167,1727425846688,-170.75540664,0.00023287,2]
[339271168,1727425846698,-500.0,0.00023287,2]
[339271169,1727425846708,-338.0,0.00023288,2]
[339271170,1727425846719,-453.0,0.00023288,2]
[339271171,1727425846728,-500.0,0.00023288,2]
[339271172,1727425846739,-491.55029659,0.00023288,2]
[339271173,1727425846749,-500.0,0.00023288,2]
[339271174,1727425846759,-500.0,0.00023288,2]
[339271175,1727425846768,-500.0,0.00023288,2]
[339271176,1727425846791,-500.0,0.00023288,2]
[339271177,1727425846803,-500.0,0.00023288,2]
[339271178,1727425846813,-2435.48,0.00023561,2]
[339271179,1727425846825,-500.0,0.00023561,2]
[339271180,1727425846835,-220.0,0.0002367,2]
[339271181,1727425846845,-2608.03267051,0.000238,2]
[339271182,1727425846856,-2435.48,0.00023835,2]
[339271183,1727425846866,-500.0,0.00023835,2]
[339271184,1727425846876,-153.0,0.00023862,2]
[339271185,1727425846887,-153.0,0.00023862,2]
[339271186,1727425846898,-153.0,0.00023862,2]
[339271187,1727425846910,-153.0,0.00023862,2]
[339271188,1727425846922,-153.0,0.00023862,2]
[339271189,1727425846934,-153.0,0.00023862,2]
[339271190,1727425846944,-153.0,0.00023862,2]
[339271191,1727425846956,-153.0,0.00023862,2]
[339271192,1727425846966,-2500.0,0.00023965,2]
[339271193,1727425846976,-2435.48,0.00024109,2]
[339271194,1727425846986,-500.0,0.00024109,2]
[339271195,1727425846996,-338.0,0.00024164,2]
[339271196,1727425847007,-453.0,0.00024164,2]
[339271197,1727425847018,-154.19,0.000242,31]
[339271198,1727425847032,-154.19,0.000242,31]
[339271199,1727425847046,-154.19,0.000242,31]
[339271200,1727425847056,-154.19,0.000242,31]
[339271201,1727425847067,-154.19,0.000242,31]
[339271202,1727425847077,-154.19,0.000242,31]
[339271203,1727425847088,-154.19,0.000242,31]
[339271204,1727425847099,-154.19,0.000242,31]
[339271205,1727425847109,-154.19,0.000242,31]
[339271206,1727425847119,-154.19,0.000242,31]
[339271207,1727425847130,-154.19,0.000242,31]
[339271208,1727425847141,-154.19,0.000242,31]
[339271209,1727425847152,-154.19,0.000242,31]
[339271210,1727425847162,-154.19,0.000242,31]
[339271211,1727425847172,-200.0,0.00024279,120]
[339271212,1727425847182,-3951.26740268,0.00024383,2]
[339271213,1727425847192,-2435.48,0.00024383,2]
[339271214,1727425847203,-500.0,0.00024383,2]
[339271215,1727425847215,-165.763528,0.000245,3]
[339271216,1727425847226,-151.0,0.00024549,2]
[339271217,1727425847236,-2471.17796445,0.00024568,2]
[339271218,1727425847246,-1000.0,0.00024647,2]
[339271219,1727425847257,-2435.48,0.00024657,2]
[339271220,1727425847267,-261.77756648,0.00024657,2]
[339271221,1727425847277,-200.0,0.00024657,2]
[339271222,1727425847288,-200.0,0.00024657,2]
[339271223,1727425847299,-200.0,0.00024657,2]
[339271224,1727425847310,-216.27618387,0.00024657,2]
[339271225,1727425847320,-660.0,0.00024658,2]
[339271226,1727425847330,-380.0,0.00024658,2]
[339271227,1727425847341,-200.0,0.00024658,15]
[339271228,1727425847351,-1000.0,0.00024817,2]
[339271229,1727425847362,-1399.73321401,0.00024853,2]
[339271230,1727425847371,-1000.0,0.0002486,2]
[339271231,1727425847381,-3848.0,0.000249,2]
[339271232,1727425847391,-2435.48,0.00024931,2]
[339271233,1727425847402,-2581.08818702,0.00024999,2]
[339271234,1727425847412,-792.5877182,0.00025,2]
[339271235,1727425847422,-91300.94478712,0.00025,2]
[339271240,1727425847808,-19.54782163,0.00025,2]
[339271241,1727425847821,-30007.95097625,0.00025,2]
[339271288,1727426673710,-178.071292,0.00017392,2]
[339271289,1727426673733,-157.281103,0.00017452,2]
[339271290,1727426673756,-3000.0,0.00017683,2]
[339271291,1727426673778,-300.0,0.00017691,2]
[339271292,1727426673801,-300.0,0.00017691,2]
[339271293,1727426673826,-500.0,0.00017691,2]
[339271294,1727426673850,-500.0,0.00017691,2]
[339271295,1727426673873,-268.14875251,0.00017691,2]
[339271296,1727426673896,-381.50889094,0.00017691,2]
[339271297,1727426673921,-500.0,0.00017691,2]
[339271298,1727426673947,-500.0,0.00017691,2]
[339271299,1727426673971,-500.0,0.00017691,2]
[339271300,1727426673997,-500.0,0.00017691,2]
[339271301,1727426674022,-500.0,0.00017691,2]
[339271302,1727426674048,-500.0,0.00017691,2]
[339271303,1727426674072,-500.0,0.00017691,2]
[339271304,1727426674097,-332.08172849,0.00017691,2]
[339271305,1727426674122,-500.0,0.00017691,2]
[339271306,1727426674149,-500.0,0.00017691,2]
[339271307,1727426674172,-24900.0,0.00017692,2]
[339271308,1727426674194,-192.849394,0.00018113,2]
[339271309,1727426674218,-250.0,0.0001812,2]
[339271310,1727426674241,-157.281103,0.00018137,2]
[339271311,1727426674396,-250.0,0.0001817,2]
[339271312,1727426674422,-250.0,0.00018219,2]
[339271313,1727426674448,-250.0,0.00018269,2]
[339271314,1727426674471,-474.1093784,0.00018306,2]
[339271315,1727426674495,-250.0,0.00018319,2]
[339271316,1727426674518,-250.0,0.00018369,2]
[339271317,1727426674543,-250.0,0.00018418,2]
[339271318,1727426674567,-250.0,0.00018468,2]
[339271319,1727426674591,-250.0,0.00018518,2]
[339271320,1727426674616,-250.0,0.00018567,2]
[339271321,1727426674641,-250.0,0.00018617,2]
[339271322,1727426674664,-250.0,0.00018667,2]
[339271323,1727426674688,-250.0,0.00018716,2]
[339271324,1727426674712,-250.0,0.00018766,2]
[339271325,1727426674737,-250.0,0.00018816,2]
[339271326,1727426674760,-157.281103,0.00018822,2]
[339271327,1727426674785,-250.0,0.00018865,2]
[339271328,1727426674807,-154.21829838,0.000189,2]
[339271329,1727426674832,-250.0,0.00018915,2]
[339271330,1727426674857,-250.0,0.00018965,2]
[339271331,1727426674884,-250.0,0.00019015,2]
[339271332,1727426674908,-250.0,0.00019064,2]
[339271333,1727426674931,-1836.34392367,0.00019078,2]
[339271334,1727426674953,-158.16523038,0.00019088,2]
[339271335,1727426674977,-150.58902122,0.00019097,2]
[339271336,1727426675000,-386.04670005,0.00019173,2]
[339271337,1727426675024,-500.0,0.00019173,2]
[339271338,1727426675048,-274.40278859,0.00019173,2]
[339271339,1727426675070,-500.0,0.00019178,2]
[339271340,1727426675093,-500.0,0.00019178,2]
[339271341,1727426675115,-503.58012951,0.00019178,2]
[339271342,1727426675138,-500.0,0.00019178,2]
[339271343,1727426675161,-500.0,0.00019178,2]
[339271344,1727426675184,-504.58815005,0.00019178,2]
[339271345,1727426675207,-500.0,0.00019178,2]
[339271346,1727426675230,-500.0,0.00019178,2]
[339271347,1727426675252,-500.0,0.00019178,2]
[339271348,1727426675276,-500.0,0.00019178,2]
[339271349,1727426675299,-500.0,0.00019178,2]
[339271350,1727426675322,-500.0,0.00019178,2]
[339271351,1727426675344,-502.390674,0.00019178,2]
[339271352,1727426675366,-500.0,0.00019178,2]
[339271353,1727426675388,-500.0,0.00019178,2]
[339271354,1727426675412,-513.80457074,0.00019178,2]
[339271355,1727426675434,-500.0,0.00019178,2]
[339271356,1727426675457,-500.0,0.00019178,2]
[339271357,1727426675479,-500.0,0.00019178,2]
[339271358,1727426675502,-522.31,0.00019178,2]
[339271359,1727426675524,-500.0,0.00019178,2]
[339271360,1727426675547,-500.0,0.00019178,2]
[339271361,1727426675571,-500.0,0.00019178,2]
[339271362,1727426675594,-500.0,0.00019178,2]
[339271363,1727426675617,-506.9631779,0.00019178,2]
[339271364,1727426675640,-500.0,0.00019178,2]
[339271365,1727426675662,-510.67197481,0.00019178,2]
[339271366,1727426675684,-500.0,0.00019178,2]
[339271367,1727426675706,-286.42954028,0.00019178,2]
[339271368,1727426675729,-500.0,0.00019178,2]
[339271369,1727426675750,-500.0,0.00019178,2]
[339271370,1727426675772,-500.0,0.00019178,2]
[339271371,1727426675794,-502.35887065,0.00019178,2]
[339271372,1727426675815,-500.0,0.00019178,2]
[339271373,1727426675836,-500.0,0.00019178,2]
[339271374,1727426675857,-500.0,0.00019178,2]
[339271375,1727426675880,-510.19242227,0.00019178,2]
[339271376,1727426675902,-500.0,0.00019178,2]
[339271377,1727426675925,-500.0,0.00019178,2]
[339271378,1727426675947,-502.42042241,0.00019178,2]
[339271379,1727426675969,-500.0,0.00019178,2]
[339271380,1727426675990,-500.0,0.00019178,2]
[339271381,1727426676012,-506.75925166,0.00019178,2]
[339271382,1727426676035,-500.0,0.00019178,2]
[339271383,1727426676058,-500.0,0.00019178,2]
[339271384,1727426676079,-506.59010023,0.00019178,2]
[339271385,1727426676101,-500.0,0.00019178,2]
[339271386,1727426676123,-500.007536,0.00019178,2]
[339271387,1727426676146,-531.76943769,0.00019178,2]
[339271388,1727426676168,-532.44126041,0.00019178,2]
[339271389,1727426676189,-508.5049903,0.00019178,2]
[339271390,1727426676212,-942.66,0.00019178,2]
[339271391,1727426676234,-500.0,0.00019178,2]
[339271392,1727426676256,-500.0,0.00019178,2]
[339271393,1727426676278,-500.0,0.00019178,2]
[339271394,1727426676302,-500.0,0.00019178,2]
[339271395,1727426676325,-184.05439,0.00019178,2]
[339271396,1727426676350,-500.0,0.00019187,2]
[339271397,1727426676372,-415.97868971,0.00019187,2]
[339271398,1727426676396,-455.33449855,0.00019187,2]
[339271399,1727426676420,-500.0,0.00019187,2]
[339271400,1727426676446,-552.57986107,0.00019187,2]
[339271401,1727426676470,-500.0,0.00019187,2]
[339271402,1727426676493,-53778.970256,0.00019188,3]
[339271403,1727426676516,-61761.8007,0.00019188,3]
[339271404,1727426676538,-442.03305431,0.00019198,2]
[339271405,1727426676561,-500.0,0.00019198,2]
[339271406,1727426676584,-500.0,0.00019198,2]
[339271407,1727426676605,-500.0,0.00019198,2]
[339271408,1727426676628,-500.0,0.00019198,2]
[339271409,1727426676650,-500.0,0.00019198,2]
[339271410,1727426676672,-500.0,0.00019198,2]
[339271411,1727426676694,-500.0,0.00019198,2]
[339271412,1727426676715,-502.34490167,0.00019198,2]
[339271413,1727426676737,-500.0,0.00019198,2]
[339271414,1727426676759,-500.0,0.00019198,2]
[339271415,1727426676782,-500.0,0.00019198,2]
[339271416,1727426676803,-527.50529191,0.00019198,2]
[339271417,1727426676825,-200.0,0.00019198,2]
[339271418,1727426676847,-500.0,0.00019198,2]
[339271419,1727426676871,-500.0,0.00019198,2]
[339271420,1727426676893,-500.0,0.00019198,2]
[339271421,1727426676915,-644.59,0.00019198,2]
[339271422,1727426676937,-500.0,0.00019198,2]
[339271423,1727426676959,-501.39593937,0.00019198,2]
[339271424,1727426676981,-500.0,0.00019198,2]
[339271425,1727426677003,-500.0,0.00019198,2]
[339271426,1727426677026,-500.0,0.00019198,2]
[339271427,1727426677049,-500.0,0.00019198,2]
[339271428,1727426677071,-500.0,0.00019198,2]
[339271429,1727426677093,-500.0,0.00019198,2]
[339271430,1727426677116,-500.0,0.00019198,2]
[339271431,1727426677138,-500.0,0.00019198,2]
[339271432,1727426677159,-500.0,0.00019198,2]
[339271433,1727426677181,-500.0,0.00019198,2]
[339271434,1727426677203,-500.0,0.00019198,2]
[339271435,1727426677224,-500.0,0.00019198,2]
[339271436,1727426677246,-500.0,0.00019198,2]
[339271437,1727426677267,-500.0,0.00019198,2]
[339271438,1727426677288,-500.0,0.00019198,2]
[339271439,1727426677310,-500.0,0.00019198,2]
[339271440,1727426677332,-522.10456009,0.00019198,2]
[339271441,1727426677354,-500.0,0.00019198,2]
[339271442,1727426677490,-501.42969958,0.00019198,2]
[339271443,1727426677513,-500.0,0.00019198,2]
[339271444,1727426677536,-500.0,0.00019198,2]
[339271445,1727426677560,-511.82620235,0.00019198,2]
[339271446,1727426677582,-500.0,0.00019198,2]
[339271447,1727426677604,-225.28399239,0.00019198,2]
[339271448,1727426677627,-506.21437589,0.00019198,2]
[339271449,1727426677650,-500.0,0.00019198,2]
[339271450,1727426677672,-505.99498372,0.00019198,2]
[339271451,1727426677694,-502.07800957,0.00019198,2]
[339271452,1727426677716,-502.98838946,0.00019198,2]
[339271453,1727426677737,-502.9036482,0.00019198,2]
[339271454,1727426677759,-509.43865599,0.00019198,2]
[339271455,1727426677783,-486.53392389,0.00019198,2]
[339271456,1727426677804,-500.0,0.00019198,2]
[339271457,1727426677825,-605.35,0.00019198,2]
[339271458,1727426677848,-500.0,0.00019198,2]
[339271459,1727426677875,-420.0,0.00019309,2]
[339271460,1727426677899,-500.0,0.00019421,2]
[339271461,1727426677923,-942.66,0.00019452,2]
[339271462,1727426677948,-500.0,0.00019452,2]
[339271463,1727426677971,-500.0,0.00019452,2]
[339271464,1727426677994,-182.11,0.00019452,2]
[339271465,1727426678017,-500.0,0.00019452,2]
[339271466,1727426678041,-420.0,0.00019461,2]
[339271467,1727426678064,-500.0,0.00019472,2]
[339271468,1727426678087,-153.0,0.00019616,2]
[339271469,1727426678112,-153.0,0.00019616,2]
[339271470,1727426678135,-153.0,0.00019616,2]
[339271471,1727426678157,-153.0,0.00019616,2]
[339271472,1727426678181,-153.0,0.00019616,2]
[339271473,1727426678206,-153.0,0.00019616,2]
[339271474,1727426678231,-153.0,0.00019616,2]
[339271475,1727426678254,-153.0,0.00019616,2]
[339271476,1727426678277,-153.0,0.00019616,2]
[339271477,1727426678299,-153.0,0.00019616,2]
[339271478,1727426678321,-153.0,0.0001962,2]
[339271479,1727426678343,-153.0,0.0001962,2]
[339271480,1727426678368,-153.0,0.0001962,2]
[339271481,1727426678392,-153.0,0.0001962,2]
[339271482,1727426678415,-153.0,0.0001962,2]
[339271483,1727426678438,-19701.57540814,0.00019631,2]
[339271484,1727426678460,-2731.37953577,0.00019632,2]
[339271485,1727426678482,-1000.0,0.00019721,2]
[339271486,1727426678506,-805.71981583,0.00019726,2]
[339271487,1727426834148,-192.8493942,0.00018898,2]
[339271488,1727426834172,-300.0,0.00019177,2]
[339271489,1727426834194,-300.0,0.00019177,2]
[339271490,1727426834216,-500.0,0.00019178,2]
[339271491,1727426834241,-500.0,0.00019178,2]
[339271492,1727426834263,-381.34843095,0.00019178,2]
[339271493,1727426834302,-558.81008031,0.00019178,2]
[339271494,1727426834327,-500.0,0.00019178,2]
[339271495,1727426834349,-500.0,0.00019178,2]
[339271496,1727426834372,-2580.19,0.00019178,2]
[339271497,1727426834395,-500.0,0.00019178,2]
[339271498,1727426834416,-200.0,0.00019178,2]
[339271499,1727426834437,-510.45469994,0.00019198,2]
[339271500,1727426834459,-537.87276711,0.00019198,2]
[339271501,1727426834484,-576.96590482,0.00019198,2]
[339271502,1727426834506,-500.0,0.00019198,2]
[339271503,1727426834528,-2580.19,0.00019452,2]
[339271504,1727426834550,-500.0,0.00019452,2]
[339271505,1727426834571,-500.0,0.00019472,2]
[339271506,1727426834592,-158.16523034,0.00019541,2]
[339271507,1727426834614,-500.0,0.0001955,2]
[339271508,1727426834635,-153.0,0.00019581,2]
[339271509,1727426834656,-153.0,0.00019581,2]
[339271510,1727426834679,-153.0,0.00019581,2]
[339271511,1727426834700,-153.0,0.00019581,2]
[339271512,1727426834724,-153.0,0.00019581,2]
[339271513,1727426834747,-153.0,0.00019581,2]
[339271514,1727426834768,-153.0,0.00019581,2]
[339271515,1727426834789,-153.0,0.00019581,2]
[339271516,1727426834812,-153.0,0.00019581,2]
[339271517,1727426834835,-120.93955661,0.00019581,2]
[339271518,1727426846148,-32.06044339,0.00019581,2]
[339271519,1727426846171,-153.0,0.00019582,2]
[339271520,1727426846192,-500.0,0.00019726,2]
[339271521,1727426846213,-500.0,0.00019726,2]
[339271522,1727426846242,-2580.19,0.00019726,2]
[339271523,1727426846265,-500.0,0.00019726,2]
[339271524,1727426846287,-500.0,0.00019746,2]
[339271525,1727426846308,-500.0,0.00019746,2]
[339271526,1727426846335,-178.071292,0.00019763,2]
[339271527,1727426846356,-158.16523034,0.00019994,2]
[339271528,1727426846379,-500.0,0.00019999,2]
[339271529,1727426846400,-500.0,0.00019999,2]
[339271530,1727426846422,-583.20817285,0.00019999,2]
[339271531,1727426846443,-298.48334783,0.0002,2]
[339271532,1727426846469,-500.0,0.0002,2]
[339271533,1727426846493,-2580.19,0.0002,2]
[339271534,1727426846515,-500.0,0.0002,2]
[339271535,1727426846536,-500.0,0.0002002,2]
[339271536,1727426846560,-170.556487,0.00020052,2]
[339271537,1727426846581,-216.25980834,0.00020098,2]
[339271538,1727426846604,-500.0,0.00020273,2]
[339271539,1727426846627,-2580.19,0.00020273,2]
[339271540,1727426846650,-500.0,0.00020273,2]
[339271541,1727426846672,-500.0,0.00020294,2]
[339271542,1727426846693,-158.16523034,0.00020447,2]
[339271543,1727426846714,-291.1850828,0.00020536,2]
[339271544,1727426846736,-152.61513279,0.00020536,2]
[339271547,1727426948241,-500.0,0.00019178,2]
[339271548,1727426948263,-500.0,0.00019178,2]
[339271549,1727426948285,-187.06272016,0.00019178,2]
[339271550,1727426948311,-500.0,0.00019178,2]
[339271551,1727426948332,-500.0,0.00019452,2]
[339271552,1727426948352,-500.0,0.00019452,2]
[339271553,1727426948373,-300.0,0.00019571,2]
[339271554,1727426948394,-300.0,0.00019571,2]
[339271555,1727426948415,-153.0,0.00019572,2]
[339271556,1727426948436,-153.0,0.00019572,2]
[339271557,1727426948457,-153.0,0.00019572,2]
[339271558,1727426948477,-153.0,0.00019572,2]
[339271559,1727426948498,-153.0,0.00019572,2]
[339271560,1727426948518,-153.0,0.00019572,2]
[339271561,1727426948539,-153.0,0.00019572,2]
[339271562,1727426948560,-153.0,0.00019572,2]
[339271563,1727426948581,-153.0,0.00019572,2]
[339271564,1727426948600,-153.0,0.00019572,2]
[339271565,1727426948621,-153.0,0.00019577,2]
[339271566,1727426948644,-153.0,0.00019577,2]
[339271567,1727426948664,-153.0,0.00019577,2]
[339271568,1727426948685,-153.0,0.00019577,2]
[339271569,1727426948707,-153.0,0.00019577,2]